[Event "36th European Club Cup 2021"]
[Site "Struga"]
[Date "2021.09.24"]
[Round "7.19"]
[White "Tari, Aryan"]
[Black "Grischuk, Alexander"]
[Result "1/2-1/2"]
[ECO "C67"]
[WhiteElo "2642"]
[BlackElo "2775"]
[Annotator "ChessBase"]
[PlyCount "60"]
[EventDate "2021.09.18"]
[EventType "team-tourn"]
[EventCountry "MKD"]
[SourceTitle "playchess.com"]
[Source "ChessBase"]
[SourceQuality "1"]
[TimeControl "40/5400+30:1800+30"]

1. e4 {[%emt 0:00:08]} e5 {[%emt 0:01:03]} 2. Nf3 {[%emt 0:00:07]} Nc6 {
[%emt 0:00:03]} 3. Bb5 {[%emt 0:00:06]} Nf6 {[%emt 0:00:16]} 4. O-O {[%emt 0:
00:17]} Nxe4 {[%emt 0:00:24]} 5. Re1 {[%emt 0:00:07]} Nd6 {[%emt 0:00:06]} 6.
Nxe5 {[%emt 0:00:07]} Be7 {[%emt 0:00:10]} 7. Bf1 {[%emt 0:00:18]} Nxe5 {
[%emt 0:00:21]} 8. Rxe5 {[%emt 0:00:06]} O-O {[%emt 0:00:05]} 9. d4 {[%emt 0:
00:15]} Bf6 {[%emt 0:00:14]} 10. Re1 {[%emt 0:00:08]} Re8 {[%emt 0:00:07]} 11.
Bf4 {[%emt 0:00:57]} Rxe1 {[%emt 0:00:47]} 12. Qxe1 {[%emt 0:00:05]} Ne8 {
[%emt 0:00:08]} 13. c3 {[%emt 0:00:31]} d5 {[%emt 0:00:42]} 14. Bd3 {[%emt 0:
00:42]} g6 {[%emt 0:02:16]} 15. Nd2 {[%emt 0:00:21]} Ng7 {[%emt 0:00:44]} 16.
Nf3 {[%emt 0:01:54]} c6 {[%emt 0:07:07]} 17. Qe2 {[%emt 0:05:14]} Bf5 {[%emt 0:
00:41]} 18. Bxf5 {[%emt 0:04:47]} Nxf5 {[%emt 0:00:19]} 19. Re1 {[%emt 0:00:30]
} Ng7 {[%emt 0:00:13]} 20. Be5 {[%emt 0:06:12]} Ne6 {[%emt 0:00:40]} 21. Bxf6 {
[%emt 0:03:51]} Qxf6 {[%emt 0:00:12]} 22. Ne5 {[%emt 0:00:12]} Re8 {[%emt 0:00:
13]} 23. Ng4 {[%emt 0:03:39]} Qd8 {[%emt 0:00:49]} 24. Qe5 {[%emt 0:03:59]} Ng7
{[%emt 0:00:13]} 25. Qxe8+ {[%emt 0:00:36]} Nxe8 {[%emt 0:00:07]} 26. Rxe8+ {
[%emt 0:00:06]} Qxe8 {[%emt 0:00:02]} 27. Nf6+ {[%emt 0:00:07]} Kf8 {[%emt 0:
00:03]} 28. Nxe8 {[%emt 0:00:07]} Kxe8 {[%emt 0:00:02]} 29. f4 {[%emt 0:00:13]}
f5 {[%emt 0:00:04]} 30. Kf2 {[%emt 0:00:12]} Ke7 {[%emt 0:00:02]} 1/2-1/2

[Event "36th European Club Cup 2021"]
[Site "Struga"]
[Date "2021.09.24"]
[Round "7.20"]
[White "Malakhov, Vladimir"]
[Black "Christiansen, Johan-Sebastian"]
[Result "1/2-1/2"]
[ECO "B53"]
[WhiteElo "2666"]
[BlackElo "2609"]
[Annotator "ChessBase"]
[PlyCount "133"]
[EventDate "2021.09.18"]
[EventType "team-tourn"]
[EventCountry "MKD"]
[SourceTitle "playchess.com"]
[Source "ChessBase"]
[SourceQuality "1"]
[TimeControl "40/5400+30:1800+30"]

1. Nf3 {[%emt 0:00:18]} c5 {[%emt 0:00:48]} 2. e4 {[%emt 0:00:53]} d6 {[%emt 0:
00:02]} 3. d4 {[%emt 0:00:08]} cxd4 {[%emt 0:00:05]} 4. Qxd4 {[%emt 0:00:13]}
Nf6 {[%emt 0:00:04]} 5. Bb5+ {[%emt 0:00:59]} Nc6 {[%emt 0:06:52]} 6. Qd3 {
[%emt 0:05:01]} Bd7 {[%emt 0:01:04]} 7. c4 {[%emt 0:00:39]} a6 {[%emt 0:02:05]}
8. Bxc6 {[%emt 0:00:06]} Bxc6 {[%emt 0:00:08]} 9. Nc3 {[%emt 0:00:10]} h6 {
[%emt 0:03:20]} 10. O-O {[%emt 0:01:55]} e5 {[%emt 0:00:27]} 11. a4 {[%emt 0:
04:00]} Be7 {[%emt 0:05:00]} 12. Be3 {[%emt 0:08:01]} O-O {[%emt 0:08:32]} 13.
a5 {[%emt 0:02:40]} Nxe4 {[%emt 0:11:58]} 14. Nxe4 {[%emt 0:00:05]} f5 {
[%emt 0:00:03]} 15. Nfd2 {[%emt 0:00:29]} fxe4 {[%emt 0:00:41]} 16. Nxe4 {
[%emt 0:00:05]} d5 {[%emt 0:01:21]} 17. cxd5 {[%emt 0:00:05]} Qxd5 {[%emt 0:00:
25]} 18. Qxd5+ {[%emt 0:00:05]} Bxd5 {[%emt 0:00:04]} 19. Nc5 {[%emt 0:15:59]}
Bxc5 {[%emt 0:03:32]} 20. Bxc5 {[%emt 0:00:09]} Rfd8 {[%emt 0:00:54]} 21. Rfe1
{[%emt 0:02:47]} e4 {[%emt 0:02:43]} 22. Bb6 {[%emt 0:02:53]} Rf8 {[%emt 0:00:
37]} 23. Rad1 {[%emt 0:01:30]} Bc6 {[%emt 0:00:14]} 24. Rd4 {[%emt 0:00:43]}
Rf5 {[%emt 0:01:12]} 25. b4 {[%emt 0:01:04]} Raf8 {[%emt 0:00:15]} 26. Bc5 {
[%emt 0:00:33]} R8f7 {[%emt 0:00:34]} 27. Rd8+ {[%emt 0:00:57]} Kh7 {[%emt 0:
00:02]} 28. Red1 {[%emt 0:00:08]} Rg5 {[%emt 0:00:37]} 29. Be3 {[%emt 0:01:00]}
Rgf5 {[%emt 0:01:01]} 30. R8d4 {[%emt 0:00:30]} Re7 {[%emt 0:01:17]} 31. h3 {
[%emt 0:00:12]} Rff7 {[%emt 0:03:18]} 32. Rd6 {[%emt 0:05:58]} Rd7 {[%emt 0:01:
39]} 33. Bc5 {[%emt 0:00:06]} Rxd6 {[%emt 0:00:14]} 34. Rxd6 {[%emt 0:00:04]}
Rd7 {[%emt 0:00:18]} 35. Re6 {[%emt 0:00:06]} Kg8 {[%emt 0:01:41]} 36. b5 {
[%emt 0:05:01]} Bxb5 {[%emt 0:09:51]} 37. Rxe4 {[%emt 0:00:06]} Bc6 {[%emt 0:
01:57]} 38. Re3 {[%emt 0:01:48]} Rd5 {[%emt 0:01:07]} 39. Bb4 {[%emt 0:02:39]}
Rg5 {[%emt 0:00:39]} 40. f3 {[%emt 0:00:00]} Rb5 {[%emt 0:00:00]} 41. Bc3 {
[%emt 0:01:05]} Rb3 {[%emt 0:02:06]} 42. h4 {[%emt 0:00:43]} Kf7 {[%emt 0:08:
47]} 43. h5 {[%emt 0:06:28]} b5 {[%emt 0:27:48]} 44. axb6 {[%emt 0:00:14]} Rxb6
{[%emt 0:00:11]} 45. f4 {[%emt 0:01:59]} Rb7 {[%emt 0:08:11]} 46. f5 {[%emt 0:
13:43]} Rb5 {[%emt 0:05:19]} 47. Rg3 {[%emt 0:04:46]} Rxf5 {[%emt 0:00:16]} 48.
Rxg7+ {[%emt 0:00:05]} Kf8 {[%emt 0:01:35]} 49. Rg6 {[%emt 0:00:06]} Be8 {
[%emt 0:03:37]} 50. Rxh6 {[%emt 0:00:10]} Bxh5 {[%emt 0:00:33]} 51. Rxa6 {
[%emt 0:00:05]} Kf7 {[%emt 0:00:06]} 52. Kh2 {[%emt 0:00:37]} Be2 {[%emt 0:00:
04]} 53. Ra2 {[%emt 0:00:16]} Bc4 {[%emt 0:00:21]} 54. Ra7+ {[%emt 0:00:36]}
Kg6 {[%emt 0:01:24]} 55. Rg7+ {[%emt 0:00:55]} Kh6 {[%emt 0:00:03]} 56. Re7 {
[%emt 0:00:06]} Bd5 {[%emt 0:00:42]} 57. Bd4 {[%emt 0:01:13]} Kg6 {[%emt 0:00:
15]} 58. Rg7+ {[%emt 0:00:13]} Kh6 {[%emt 0:00:01]} 59. Rd7 {[%emt 0:00:07]}
Be4 {[%emt 0:02:23]} 60. g4 {[%emt 0:00:28]} Rf3 {[%emt 0:02:25]} 61. Re7 {
[%emt 0:01:30]} Bd5 {[%emt 0:00:59]} 62. Re5 {[%emt 0:00:08]} Ba8 {[%emt 0:02:
00]} 63. Bb6 {[%emt 0:01:32]} Kg6 {[%emt 0:00:20]} 64. Bd8 {[%emt 0:00:04]} Rd3
{[%emt 0:00:50]} 65. Bh4 {[%emt 0:00:43]} Rd4 {[%emt 0:00:49]} 66. Kh3 {
[%emt 0:07:50]} Bf3 {[%emt 0:00:12]} 67. Rg5+ {[%emt 0:00:24]} 1/2-1/2

[Event "36th European Club Cup 2021"]
[Site "Struga"]
[Date "2021.09.24"]
[Round "7.21"]
[White "Urkedal, Frode Olav Olsen"]
[Black "Zvjaginsev, Vadim"]
[Result "1/2-1/2"]
[ECO "D53"]
[WhiteElo "2568"]
[BlackElo "2603"]
[Annotator "ChessBase"]
[PlyCount "84"]
[EventDate "2021.09.18"]
[EventType "team-tourn"]
[EventCountry "MKD"]
[SourceTitle "playchess.com"]
[Source "ChessBase"]
[SourceQuality "1"]
[TimeControl "40/5400+30:1800+30"]

1. d4 {[%emt 0:00:21]} Nf6 {[%emt 0:00:05]} 2. c4 {[%emt 0:00:05]} e6 {[%emt 0:
00:03]} 3. Nf3 {[%emt 0:00:05]} d5 {[%emt 0:00:05]} 4. Nc3 {[%emt 0:00:13]} c6
{[%emt 0:00:39]} 5. Bg5 {[%emt 0:01:20]} Be7 {[%emt 0:00:08]} 6. e3 {[%emt 0:
00:33]} h6 {[%emt 0:00:37]} 7. Bf4 {[%emt 0:00:47]} Nbd7 {[%emt 0:05:52]} 8. h3
{[%emt 0:07:39]} Bb4 {[%emt 0:09:56]} 9. Rc1 {[%emt 0:07:28]} O-O {[%emt 0:04:
09]} 10. Bd3 {[%emt 0:03:28]} c5 {[%emt 0:10:58]} 11. O-O {[%emt 0:07:32]} cxd4
{[%emt 0:00:20]} 12. exd4 {[%emt 0:00:17]} dxc4 {[%emt 0:01:48]} 13. Bxc4 {
[%emt 0:00:10]} Nb6 {[%emt 0:04:33]} 14. Bb3 {[%emt 0:00:56]} Bd7 {[%emt 0:01:
26]} 15. Ne5 {[%emt 0:00:38]} Rc8 {[%emt 0:01:50]} 16. Qf3 {[%emt 0:04:31]} Bc6
{[%emt 0:01:11]} 17. Nxc6 {[%emt 0:00:38]} Rxc6 {[%emt 0:01:45]} 18. Be5 {
[%emt 0:05:06]} Nfd7 {[%emt 0:01:27]} 19. Ne4 {[%emt 0:09:47]} Nd5 {[%emt 0:07:
13]} 20. Qg4 {[%emt 0:08:17]} Nxe5 {[%emt 0:03:00]} 21. dxe5 {[%emt 0:00:09]}
Be7 {[%emt 0:06:06]} 22. Rcd1 {[%emt 0:06:24]} Qa5 {[%emt 0:06:31]} 23. Rd3 {
[%emt 0:11:04]} Rfc8 {[%emt 0:06:38]} 24. Bxd5 {[%emt 0:02:51]} exd5 {[%emt 0:
00:03]} 25. Nc3 {[%emt 0:01:18]} Rd8 {[%emt 0:01:05]} 26. Rfd1 {[%emt 0:00:18]}
Rc4 {[%emt 0:01:28]} 27. Rxd5 {[%emt 0:12:08]} Rxg4 {[%emt 0:03:38]} 28. Rxa5 {
[%emt 0:00:05]} Rxd1+ {[%emt 0:00:51]} 29. Nxd1 {[%emt 0:00:05]} Rc4 {[%emt 0:
01:59]} 30. Rd5 {[%emt 0:02:07]} Kf8 {[%emt 0:07:46]} 31. Kf1 {[%emt 0:00:47]}
f6 {[%emt 0:01:50]} 32. Rd7 {[%emt 0:02:24]} b5 {[%emt 0:06:00]} 33. exf6 {
[%emt 0:03:09]} Bxf6 {[%emt 0:00:05]} 34. Rxa7 {[%emt 0:00:07]} Bxb2 {[%emt 0:
00:58]} 35. Rb7 {[%emt 0:00:12]} b4 {[%emt 0:01:31]} 36. Ne3 {[%emt 0:01:48]}
Rc1+ {[%emt 0:01:28]} 37. Ke2 {[%emt 0:00:04]} Bc3 {[%emt 0:00:42]} 38. Kd3 {
[%emt 0:02:29]} Ra1 {[%emt 0:00:15]} 39. Ra7 {[%emt 0:00:11]} Be1 {[%emt 0:00:
16]} 40. Nc2 {[%emt 0:00:00]} b3 {[%emt 0:00:00]} 41. axb3 {[%emt 0:06:00]}
Rxa7 {[%emt 0:01:46]} 42. Nxe1 {[%emt 0:00:06]} Rb7 {[%emt 0:01:18]} 1/2-1/2

[Event "36th European Club Cup 2021"]
[Site "Struga"]
[Date "2021.09.24"]
[Round "7.22"]
[White "Rublevsky, Sergei"]
[Black "Haldorsen, Benjamin"]
[Result "1-0"]
[ECO "B70"]
[WhiteElo "2641"]
[BlackElo "2465"]
[Annotator "ChessBase"]
[PlyCount "75"]
[EventDate "2021.09.18"]
[EventType "team-tourn"]
[EventCountry "MKD"]
[SourceTitle "playchess.com"]
[Source "ChessBase"]
[SourceQuality "1"]
[TimeControl "40/5400+30:1800+30"]

1. e4 {[%emt 0:00:02]} c5 {[%emt 0:00:22]} 2. Nf3 {[%emt 0:00:06]} Nc6 {
[%emt 0:00:27]} 3. Nc3 {[%emt 0:00:07]} g6 {[%emt 0:00:27]} 4. d4 {[%emt 0:00:
06]} cxd4 {[%emt 0:00:15]} 5. Nxd4 {[%emt 0:00:03]} Bg7 {[%emt 0:00:14]} 6. Nb3
{[%emt 0:00:06]} Nf6 {[%emt 0:01:18]} 7. Be2 {[%emt 0:00:14]} d6 {[%emt 0:01:
27]} 8. O-O {[%emt 0:00:07]} O-O {[%emt 0:00:05]} 9. Re1 {[%emt 0:00:02]} a6 {
[%emt 0:01:09]} 10. Bf1 {[%emt 0:02:17]} b5 {[%emt 0:02:20]} 11. a4 {[%emt 0:
00:18]} b4 {[%emt 0:03:24]} 12. Nd5 {[%emt 0:00:07]} e6 {[%emt 0:05:17]} 13.
Nxf6+ {[%emt 0:04:17]} Bxf6 {[%emt 0:00:13]} 14. a5 {[%emt 0:06:04]} Qe7 {
[%emt 0:06:12]} 15. Ra2 {[%emt 0:02:04]} Bb7 {[%emt 0:02:33]} 16. Be3 {[%emt 0:
00:17]} Rfc8 {[%emt 0:06:09]} 17. Bb6 {[%emt 0:03:39]} Ne5 {[%emt 0:06:01]} 18.
Ra4 {[%emt 0:14:10]} d5 {[%emt 0:08:18]} 19. f4 {[%emt 0:02:26]} Nc4 {[%emt 0:
00:49]} 20. e5 {[%emt 0:03:44]} Bg7 {[%emt 0:12:23]} 21. Bd4 {[%emt 0:01:26]}
Bc6 {[%emt 0:01:42]} 22. Ra1 {[%emt 0:04:59]} Bb5 {[%emt 0:00:58]} 23. Bd3 {
[%emt 0:01:38]} Bf8 {[%emt 0:09:51]} 24. Qg4 {[%emt 0:04:35]} Bd7 {[%emt 0:03:
22]} 25. h4 {[%emt 0:04:11]} Qe8 {[%emt 0:01:53]} 26. h5 {[%emt 0:01:29]} Rc7 {
[%emt 0:02:21]} 27. Re2 {[%emt 0:02:00]} Rac8 {[%emt 0:03:00]} 28. Rf1 {
[%emt 0:03:20]} Bg7 {[%emt 0:00:32]} 29. Qh3 {[%emt 0:04:37]} Ba4 {[%emt 0:04:
31]} 30. Ra1 {[%emt 0:07:43]} Bd7 {[%emt 0:08:57]} 31. g4 {[%emt 0:02:36]} Qf8
{[%emt 0:02:00]} 32. Rf1 {[%emt 0:03:00]} Qe8 {[%emt 0:00:07]} 33. Rh2 {
[%emt 0:01:44]} Ba4 {[%emt 0:02:17]} 34. hxg6 {[%emt 0:02:23]} hxg6 {[%emt 0:
00:04]} 35. f5 {[%emt 0:01:41]} exf5 {[%emt 0:02:55]} 36. gxf5 {[%emt 0:00:56]}
gxf5 {[%emt 0:01:48]} 37. Qh7+ {[%emt 0:02:25]} Kf8 {[%emt 0:00:04]} 38. Rg2 {
[%emt 0:00:02]} 1-0

[Event "36th European Club Cup 2021"]
[Site "Struga"]
[Date "2021.09.24"]
[Round "7.23"]
[White "Ranaldi, Lucas"]
[Black "Alekseev, Evgeny"]
[Result "1/2-1/2"]
[ECO "D63"]
[WhiteElo "2325"]
[BlackElo "2610"]
[Annotator "ChessBase"]
[PlyCount "94"]
[EventDate "2021.09.18"]
[EventType "team-tourn"]
[EventCountry "MKD"]
[SourceTitle "playchess.com"]
[Source "ChessBase"]
[SourceQuality "1"]
[TimeControl "40/5400+30:1800+30"]

1. Nf3 {[%emt 0:00:42]} d5 {[%emt 0:00:20]} 2. d4 {[%emt 0:00:06]} Nf6 {
[%emt 0:00:54]} 3. c4 {[%emt 0:00:35]} e6 {[%emt 0:00:25]} 4. Nc3 {[%emt 0:00:
42]} Nbd7 {[%emt 0:00:56]} 5. Bg5 {[%emt 0:00:40]} h6 {[%emt 0:15:33]} 6. Bh4 {
[%emt 0:01:10]} Be7 {[%emt 0:01:01]} 7. e3 {[%emt 0:01:02]} O-O {[%emt 0:00:13]
} 8. Rc1 {[%emt 0:25:37]} c5 {[%emt 0:06:03]} 9. cxd5 {[%emt 0:00:23]} Nxd5 {
[%emt 0:00:37]} 10. Bxe7 {[%emt 0:01:19]} Nxe7 {[%emt 0:01:22]} 11. Be2 {
[%emt 0:02:30]} b6 {[%emt 0:05:31]} 12. O-O {[%emt 0:01:40]} Bb7 {[%emt 0:00:
03]} 13. dxc5 {[%emt 0:10:27]} Nxc5 {[%emt 0:00:25]} 14. b4 {[%emt 0:20:44]}
Ne4 {[%emt 0:06:24]} 15. Nxe4 {[%emt 0:03:41]} Bxe4 {[%emt 0:00:10]} 16. Qa4 {
[%emt 0:00:17]} Nd5 {[%emt 0:02:41]} 17. b5 {[%emt 0:04:20]} Nf6 {[%emt 0:08:
31]} 18. Rfd1 {[%emt 0:03:25]} Qe7 {[%emt 0:01:33]} 19. Nd4 {[%emt 0:01:03]}
Rfd8 {[%emt 0:03:23]} 20. Nc6 {[%emt 0:07:21]} Rxd1+ {[%emt 0:00:16]} 21. Bxd1
{[%emt 0:06:36]} Qd6 {[%emt 0:09:55]} 22. Bf3 {[%emt 0:00:35]} Bxf3 {[%emt 0:
05:41]} 23. gxf3 {[%emt 0:00:02]} e5 {[%emt 0:08:19]} 24. Qc4 {[%emt 0:03:19]}
Nd7 {[%emt 0:11:22]} 25. Qe4 {[%emt 0:00:18]} Re8 {[%emt 0:00:07]} 26. Qc2 {
[%emt 0:03:13]} Nc5 {[%emt 0:01:53]} 27. Rd1 {[%emt 0:00:21]} Qf6 {[%emt 0:02:
01]} 28. Qe2 {[%emt 0:00:21]} a6 {[%emt 0:01:02]} 29. Nb4 {[%emt 0:00:07]} axb5
{[%emt 0:00:27]} 30. Nd5 {[%emt 0:00:05]} Qc6 {[%emt 0:01:10]} 31. Nb4 {
[%emt 0:01:14]} Qg6+ {[%emt 0:00:19]} 32. Kh1 {[%emt 0:00:02]} Qh5 {[%emt 0:01:
01]} 33. Rg1 {[%emt 0:00:34]} Rd8 {[%emt 0:01:14]} 34. e4 {[%emt 0:02:17]} Rd4
{[%emt 0:03:35]} 35. Nd5 {[%emt 0:00:14]} Kf8 {[%emt 0:02:24]} 36. Re1 {
[%emt 0:00:05]} f5 {[%emt 0:00:23]} 37. Nc3 {[%emt 0:00:51]} fxe4 {[%emt 0:01:
08]} 38. Nxe4 {[%emt 0:00:18]} Nxe4 {[%emt 0:00:16]} 39. fxe4 {[%emt 0:00:02]}
Qxe2 {[%emt 0:00:05]} 40. Rxe2 {[%emt 0:00:00]} Ke7 {[%emt 0:00:00]} 41. Kg2 {
[%emt 0:06:25]} h5 {[%emt 0:00:40]} 42. Kg3 {[%emt 0:05:09]} g5 {[%emt 0:00:10]
} 43. f3 {[%emt 0:01:22]} Rd3 {[%emt 0:02:41]} 44. Rb2 {[%emt 0:01:02]} g4 {
[%emt 0:00:03]} 45. Rxb5 {[%emt 0:00:17]} Rxf3+ {[%emt 0:00:03]} 46. Kg2 {
[%emt 0:00:39]} Kf6 {[%emt 0:01:07]} 47. h4 {[%emt 0:07:07]} Re3 {[%emt 0:00:
11]} 1/2-1/2

[Event "36th European Club Cup 2021"]
[Site "Struga"]
[Date "2021.09.24"]
[Round "7.24"]
[White "Kornev, Alexei"]
[Black "Haarr, Jon Kristian"]
[Result "*"]
[ECO "A31"]
[WhiteElo "2500"]
[BlackElo "2162"]
[Annotator "ChessBase"]
[PlyCount "88"]
[EventDate "2021.09.18"]
[EventType "team-tourn"]
[EventCountry "MKD"]
[SourceTitle "playchess.com"]
[Source "ChessBase"]
[SourceQuality "1"]
[TimeControl "40/5400+30:1800+30"]

1. Nf3 {[%emt 0:00:09]} c5 {[%emt 0:02:13]} 2. c4 {[%emt 0:00:29]} Nc6 {
[%emt 0:00:15]} 3. d4 {[%emt 0:00:12]} cxd4 {[%emt 0:00:31]} 4. Nxd4 {[%emt 0:
00:08]} Nf6 {[%emt 0:00:58]} 5. Nc3 {[%emt 0:00:52]} d5 {[%emt 1:29:03]} 6.
cxd5 {[%emt 0:05:29]} Nxd5 {[%emt 0:00:15]} 7. Nxc6 {[%emt 0:00:33]} bxc6 {
[%emt 0:00:09]} 8. Bd2 {[%emt 1:26:38]} g6 {[%emt 0:07:41]} 9. Qa4 {[%emt 1:26:
53]} Nb6 {[%emt 0:07:32]} 10. Qxc6+ {[%emt 0:04:46]} Bd7 {[%emt 0:00:09]} 11.
Qe4 {[%emt 0:05:00]} Bg7 {[%emt 0:03:27]} 12. e3 {[%emt 0:04:52]} O-O {[%emt 0:
04:01]} 13. Rd1 {[%emt 0:09:03]} Bf5 {[%emt 0:16:46]} 14. Qf3 {[%emt 0:01:44]}
Qc8 {[%emt 0:03:11]} 15. Be2 {[%emt 0:00:59]} Nc4 {[%emt 0:08:56]} 16. Nd5 {
[%emt 0:03:35]} Re8 {[%emt 0:06:28]} 17. Bxc4 {[%emt 0:53:09]} Qxc4 {[%emt 0:
00:48]} 18. Nxe7+ {[%emt 0:00:20]} Kh8 {[%emt 0:05:25]} 19. Nxf5 {[%emt 0:01:
46]} gxf5 {[%emt 0:00:10]} 20. Rc1 {[%emt 0:24:27]} Qxa2 {[%emt 0:01:59]} 21.
Bc3 {[%emt 0:00:55]} Bxc3+ {[%emt 0:01:37]} 22. bxc3 {[%emt 0:18:13]} Qc4 {
[%emt 0:04:48]} 23. Qxf5 {[%emt 0:02:03]} Re6 {[%emt 0:01:26]} 24. Qc2 {
[%emt 0:03:14]} Rb8 {[%emt 0:01:39]} 25. Qd2 {[%emt 0:00:41]} Kg8 {[%emt 0:03:
30]} 26. Qd4 {[%emt 0:00:54]} Qa6 {[%emt 0:00:17]} 27. c4 {[%emt 0:02:13]} Rd6
{[%emt 0:03:03]} 28. Qc3 {[%emt 0:00:29]} Rc8 {[%emt 0:10:20]} 29. O-O {
[%emt 0:00:36]} Rdc6 {[%emt 0:00:04]} 30. Ra1 {[%emt 0:01:10]} Qb7 {[%emt 0:00:
51]} 31. Ra4 {[%emt 0:00:54]} Qd7 {[%emt 0:01:22]} 32. Qa1 {[%emt 0:03:24]} Rg6
{[%emt 0:03:33]} 33. Qd1 {[%emt 0:01:25]} Qh3 {[%emt 0:01:21]} 34. Qd5 {
[%emt 0:00:30]} Kh8 {[%emt 0:00:59]} 35. g3 {[%emt 0:01:02]} Rh6 {[%emt 0:00:
43]} 36. Qg2 {[%emt 0:00:07]} Qd7 {[%emt 0:00:16]} 37. Rfa1 {[%emt 0:00:14]} a6
{[%emt 0:01:32]} 38. Rxa6 {[%emt 0:03:05]} Rxa6 {[%emt 0:00:12]} 39. Rxa6 {
[%emt 0:00:04]} Rxc4 {[%emt 0:00:04]} 40. Qf3 {[%emt 0:00:00]} Kg8 {[%emt 0:00:
00]} 41. Kg2 {[%emt 0:04:50]} Rc1 {[%emt 0:02:46]} 42. Ra5 {[%emt 0:31:12]} h6
{[%emt 0:02:25]} 43. Qd5 {[%emt 0:26:42]} Qg4 {[%emt 0:01:48]} 44. Ra8+ {
[%emt 0:01:15]} Rc8 {[%emt 0:00:07]} *

[Event "36th European Club Cup 2021"]
[Site "Struga"]
[Date "2021.09.24"]
[Round "7.25"]
[White "Mikhalevski, Victor"]
[Black "Indjic, Aleksandar"]
[Result "0-1"]
[ECO "A61"]
[WhiteElo "2573"]
[BlackElo "2629"]
[Annotator "ChessBase"]
[PlyCount "112"]
[EventDate "2021.09.18"]
[EventType "team-tourn"]
[EventCountry "MKD"]
[SourceTitle "playchess.com"]
[Source "ChessBase"]
[SourceQuality "1"]
[TimeControl "40/5400+30:1800+30"]

1. d4 {[%emt 0:00:18]} Nf6 {[%emt 0:00:25]} 2. c4 {[%emt 0:00:06]} e6 {[%emt 0:
00:25]} 3. Nf3 {[%emt 0:00:17]} c5 {[%emt 0:00:17]} 4. d5 {[%emt 0:00:06]} d6 {
[%emt 0:00:06]} 5. Nc3 {[%emt 0:00:06]} exd5 {[%emt 0:00:15]} 6. cxd5 {[%emt 0:
00:05]} g6 {[%emt 0:00:10]} 7. Bf4 {[%emt 0:00:09]} Bg7 {[%emt 0:01:14]} 8. h3
{[%emt 0:00:12]} O-O {[%emt 0:00:22]} 9. e3 {[%emt 0:00:04]} Na6 {[%emt 0:02:
56]} 10. Bc4 {[%emt 0:00:38]} Nc7 {[%emt 0:01:56]} 11. a4 {[%emt 0:00:17]} a6 {
[%emt 0:04:42]} 12. O-O {[%emt 0:02:39]} Rb8 {[%emt 0:00:36]} 13. a5 {[%emt 0:
00:55]} b5 {[%emt 0:00:13]} 14. axb6 {[%emt 0:00:08]} Rxb6 {[%emt 0:00:06]} 15.
Ra2 {[%emt 0:14:22]} Nb5 {[%emt 0:03:59]} 16. Ne2 {[%emt 0:09:07]} Re8 {
[%emt 0:03:17]} 17. Bh2 {[%emt 0:09:13]} h6 {[%emt 0:02:11]} 18. Nd2 {[%emt 0:
07:41]} Bb7 {[%emt 0:07:39]} 19. Bb3 {[%emt 0:07:24]} Bxd5 {[%emt 0:01:22]} 20.
Bxd5 {[%emt 0:00:51]} Nxd5 {[%emt 0:00:07]} 21. Nc4 {[%emt 0:00:03]} Nb4 {
[%emt 0:00:11]} 22. Nxb6 {[%emt 0:00:25]} Qxb6 {[%emt 0:07:11]} 23. Ra4 {
[%emt 0:21:50]} Bxb2 {[%emt 0:00:13]} 24. Qb3 {[%emt 0:05:03]} Bg7 {[%emt 0:00:
10]} 25. Rxb4 {[%emt 0:00:05]} cxb4 {[%emt 0:00:09]} 26. Qxb4 {[%emt 0:00:02]}
d5 {[%emt 0:01:04]} 27. Rd1 {[%emt 0:01:21]} Qc6 {[%emt 0:11:51]} 28. Rc1 {
[%emt 0:01:29]} Qd7 {[%emt 0:00:07]} 29. Qa4 {[%emt 0:02:19]} Qb7 {[%emt 0:01:
33]} 30. Qb3 {[%emt 0:05:08]} Qa8 {[%emt 0:10:23]} 31. Rd1 {[%emt 0:07:22]} Rd8
{[%emt 0:01:24]} 32. Bg3 {[%emt 0:00:59]} d4 {[%emt 0:07:54]} 33. exd4 {
[%emt 0:00:29]} Nxd4 {[%emt 0:05:18]} 34. Nxd4 {[%emt 0:00:10]} Rxd4 {[%emt 0:
00:11]} 35. Rc1 {[%emt 0:01:22]} h5 {[%emt 0:02:52]} 36. Qf3 {[%emt 0:04:08]}
Qxf3 {[%emt 0:02:23]} 37. Rc8+ {[%emt 0:00:04]} Kh7 {[%emt 0:01:07]} 38. gxf3 {
[%emt 0:00:06]} a5 {[%emt 0:00:44]} 39. Rc7 {[%emt 0:00:17]} f6 {[%emt 0:01:24]
} 40. Ra7 {[%emt 0:00:00]} a4 {[%emt 0:00:00]} 41. h4 {[%emt 0:06:34]} Kg8 {
[%emt 0:06:22]} 42. Ra8+ {[%emt 0:00:10]} Bf8 {[%emt 0:00:35]} 43. Kf1 {
[%emt 0:02:55]} a3 {[%emt 0:03:05]} 44. Ke2 {[%emt 0:00:26]} Kf7 {[%emt 0:01:
00]} 45. Ke3 {[%emt 0:09:28]} Rd7 {[%emt 0:00:23]} 46. Ke2 {[%emt 0:01:02]} Bc5
{[%emt 0:00:44]} 47. Ra5 {[%emt 0:03:26]} Ra7 {[%emt 0:00:46]} 48. Rxc5 {
[%emt 0:00:20]} a2 {[%emt 0:00:06]} 49. Rc1 {[%emt 0:13:19]} a1=Q {[%emt 0:00:
07]} 50. Rxa1 {[%emt 0:00:00]} Rxa1 {[%emt 0:00:10]} 51. Ke3 {[%emt 0:00:00]}
Ke6 {[%emt 0:00:13]} 52. Ke4 {[%emt 0:00:00]} Ra4+ {[%emt 0:00:14]} 53. Ke3 {
[%emt 0:00:00]} Kf5 {[%emt 0:00:05]} 54. Ke2 {[%emt 0:00:00]} Ra1 {[%emt 0:00:
07]} 55. Kd2 {[%emt 0:00:00]} Rh1 {[%emt 0:00:08]} 56. Ke2 {[%emt 0:00:00]} g5
{[%emt 0:00:13]} 0-1